bitfinex-derivatives/quotes_ETHF0:USTF0_20250909
["timestamp","ask_amount","ask_price","bid_price","bid_amount"]
[1757427040867,0.9093,4333.9,4333.7,1.8936]
[1757427041168,1.1893,4333.8,4333.7,1.8936]
[1757427041367,0.336,4335.0,4333.7,2.4214]
[1757427041368,0.9093,4334.7,4333.7,2.4214]
[1757427041564,0.336,4334.5,4334.0,3.2078]
[1757427041962,0.336,4334.5,4333.7,1.8936]
[1757427041963,0.336,4334.0,4333.7,1.8936]
[1757427042169,0.616,4334.0,4333.7,1.8936]
[1757427042471,0.28,4333.9,4333.7,1.8936]
[1757427042670,0.9093,4333.8,4333.7,1.8936]
[1757427042978,0.9093,4333.7,4333.1,3.0472]
[1757427043177,0.28,4333.6,4333.1,3.0472]
[1757427043368,0.336,4333.5,4333.1,3.0472]
[1757427043564,0.9093,4333.4,4333.1,3.0472]
[1757427044477,0.9093,4333.2,4333.1,3.0472]
[1757427045182,1.1893,4333.2,4333.1,3.0472]
[1757427045472,5.1893,4333.2,4333.1,3.0472]
[1757427045981,0.097,4333.0,4331.6,0.9116]
[1757427046191,3.2078,4332.6,4332.5,1.2651]
[1757427046477,3.971825,4332.6,4332.5,1.2651]
[1757427046979,0.28,4332.6,4332.5,1.2651]
[1757427047178,3.2078,4333.2,4332.6,0.8988]
[1757427047390,0.48408954,4333.1,4333.0,1.2485]
[1757427047687,3.2078,4334.5,4333.6,0.8988]
[1757427047989,3.2078,4334.5,4333.5,0.3497]
[1757427047990,0.28,4334.4,4334.1,0.8988]
[1757427048187,0.28,4334.4,4334.0,0.3497]
[1757427048598,0.28,4334.3,4334.1,0.8988]
[1757427048887,0.28,4334.2,4334.1,0.8988]
[1757427049092,3.2078,4334.5,4334.1,0.8988]
[1757427049280,33.254,4334.6,4334.5,1.2485]
[1757427049486,3.2078,4335.0,4334.6,0.8988]
[1757427049680,0.28,4334.9,4334.6,0.8988]
[1757427049887,0.28,4335.3,4335.0,0.3497]
[1757427050489,0.28,4335.3,4335.1,0.8988]
[1757427050689,0.28,4335.3,4335.0,0.3497]
[1757427050987,33.253,4336.0,4335.1,0.8988]
[1757427051191,0.28,4336.6,4335.5,3.5575]
[1757427051384,3.2078,4337.0,4336.2,3.2078]
[1757427051586,3.2078,4337.0,4336.6,0.8988]
[1757427051788,0.28,4336.9,4336.5,0.3497]
[1757427052084,34.1623,4338.1,4336.5,0.3497]
[1757427052085,3.2078,4337.6,4336.6,0.8988]
[1757427052291,0.48409306,4337.5,4336.6,0.8988]
[1757427052594,0.28,4337.4,4336.7,3.2078]
[1757427052784,1.1903,4337.4,4336.7,3.2078]
[1757427052984,3.2078,4337.1,4336.2,3.2078]
[1757427053189,3.2078,4337.1,4336.3,0.8988]
[1757427053385,0.279,4337.0,4336.3,0.8988]
[1757427053588,0.279,4337.0,4336.7,3.2078]
[1757427053795,0.279,4337.0,4336.8,0.8988]
[1757427053993,0.279,4337.0,4336.7,3.2078]
[1757427054296,0.279,4337.0,4336.8,0.8988]
[1757427054685,0.279,4337.0,4336.5,1.2485]
[1757427054888,0.279,4337.0,4336.5,0.8988]
[1757427055100,0.9103,4336.9,4336.5,0.8988]
[1757427055295,0.279,4336.8,4336.2,3.2078]
[1757427055500,3.2078,4337.2,4336.3,0.8988]
[1757427055794,1.673573,4337.1,4336.3,0.8988]
[1757427055990,0.484273,4337.0,4336.0,0.3497]
[1757427056190,0.279,4336.9,4336.1,0.8988]
[1757427056400,0.763273,4336.8,4336.1,0.8988]
[1757427056600,0.484273,4336.7,4336.1,0.8988]
[1757427056894,0.484273,4336.7,4336.2,3.2078]
[1757427057087,0.9103,4336.5,4335.8,0.8988]
[1757427057288,0.87844272,4336.4,4335.3,0.8988]
[1757427057488,3.2078,4336.2,4335.3,0.8988]
[1757427057696,1.2142,4336.0,4335.2,3.2078]
[1757427057900,0.59944364,4335.9,4335.2,3.2078]
[1757427058197,0.87845406,4335.8,4335.2,3.2078]
[1757427058400,0.48448346,4335.7,4335.2,3.2078]
[1757427058601,0.48448346,4335.7,4335.3,0.8988]
[1757427058901,1.1893,4335.6,4335.2,3.2078]
[1757427059101,0.48448346,4335.5,4335.3,0.8988]
[1757427059295,0.48448346,4335.5,4334.6,0.8988]
[1757427059502,1.14061603,4335.4,4334.5,3.2078]
[1757427059698,3.2078,4335.2,4334.5,3.2078]
[1757427059905,0.9103,4335.0,4334.0,4.4563]
[1757427060197,3.2078,4334.7,4334.0,4.4563]
[1757427060399,0.48448346,4334.6,4334.0,3.5575]
[1757427060595,0.48448346,4334.5,4334.1,0.8988]
[1757427060802,0.279,4334.4,4334.1,0.8988]
[1757427060992,0.279,4334.6,4334.1,0.8988]
[1757427061191,0.279,4334.6,4334.5,4.4563]
[1757427061396,0.1153,4335.4,4334.6,0.8988]
[1757427061596,0.48494211,4335.3,4335.2,0.8988]
[1757427062196,3.2078,4336.3,4335.3,0.8988]
[1757427062396,0.76365328,4336.2,4335.3,0.8988]
[1757427062597,0.48465328,4336.1,4335.3,0.8988]
[1757427062910,0.3391,4336.0,4335.1,3.2078]
[1757427063109,0.48465328,4335.9,4335.2,0.8988]
[1757427063405,0.9103,4335.6,4334.7,0.8988]
[1757427063599,0.87872098,4335.5,4334.7,0.8988]
[1757427063805,0.48465328,4335.4,4334.7,0.8988]
[1757427064003,0.48465328,4335.3,4334.7,0.8988]
[1757427064204,0.48465328,4335.2,4334.6,0.8988]
[1757427064416,0.278,4335.2,4335.1,0.8988]
[1757427064606,0.278,4335.2,4334.5,3.2078]
[1757427064802,0.48458633,4335.1,4334.2,0.8988]
[1757427065014,0.48458633,4335.0,4334.2,0.8988]
[1757427065311,1.39488633,4334.9,4333.7,0.8988]
[1757427065511,3.2078,4334.4,4333.7,0.8988]
[1757427065713,0.76258633,4334.3,4333.7,0.8988]
[1757427065914,0.278,4334.3,4333.7,0.8988]
[1757427066311,0.278,4334.2,4333.6,3.2078]
[1757427066914,0.278,4334.1,4333.7,0.8988]
[1757427067412,0.278,4334.1,4333.6,3.2078]
[1757427067608,0.278,4334.1,4333.7,0.8988]
[1757427067808,0.278,4334.1,4333.6,3.2078]
[1757427068013,0.278,4334.0,4333.7,0.8988]
[1757427069101,0.278,4334.0,4333.6,3.2078]
[1757427069308,0.278,4334.0,4333.7,0.8988]
[1757427069512,33.24,4334.8,4333.7,0.8988]
[1757427069711,0.76259972,4334.7,4333.7,0.8988]
[1757427069912,0.9103,4334.5,4333.7,0.8988]
[1757427070114,0.48459972,4334.4,4333.7,0.8988]
[1757427070313,0.9103,4334.5,4333.7,0.8988]
[1757427070509,0.278,4334.3,4333.7,0.8988]
[1757427071010,0.9103,4334.5,4333.7,0.8988]
[1757427071209,33.24,4334.8,4334.1,3.2078]
[1757427071515,0.76263016,4334.7,4334.1,4.1066]
[1757427071715,0.48463016,4334.6,4333.6,3.2078]
[1757427072016,0.76263016,4334.5,4333.7,0.8988]
[1757427072204,0.278,4334.5,4333.7,0.8988]
[1757427072406,0.278,4334.5,4334.1,3.2078]
[1757427072609,33.24,4334.8,4334.1,3.2078]
[1757427072610,0.278,4334.4,4334.1,3.2078]
[1757427072912,0.278,4334.3,4334.2,0.8988]
[1757427073312,3.2078,4335.5,4334.2,0.8988]
[1757427073510,0.48456682,4335.4,4334.7,0.8988]
[1757427073711,0.278,4335.3,4335.1,3.2078]
[1757427074015,4.1181,4336.1,4335.1,3.2078]
[1757427074217,0.87773028,4336.0,4335.1,3.2078]
[1757427074510,3.2078,4336.1,4335.1,3.2078]
[1757427074511,0.48464811,4335.9,4335.2,0.8988]
[1757427074711,0.278,4335.8,4335.6,3.2078]
[1757427074920,3.2078,4336.1,4336.0,0.3497]
[1757427075109,0.278,4336.1,4336.0,1.2485]
[1757427075505,0.278,4336.1,4336.0,0.8988]
[1757427076007,0.278,4336.1,4336.0,1.2485]
[1757427076412,0.9103,4336.8,4336.0,1.2485]
[1757427076613,0.87885159,4336.7,4336.0,1.2485]
[1757427076813,0.60085159,4336.6,4336.0,1.2485]
[1757427077024,0.48556788,4336.5,4336.0,0.3497]
[1757427077318,0.278,4336.7,4336.1,0.8959]
[1757427077319,0.48556788,4336.4,4336.1,0.8959]
[1757427077513,0.48556788,4336.3,4336.1,0.8959]
[1757427077815,1.78142606,4336.2,4335.6,4.1037]
[1757427078015,0.87792773,4336.1,4335.7,0.8959]
[1757427078217,1.38906788,4336.0,4335.7,0.8959]
[1757427078515,0.9035,4335.8,4335.0,4.4534]
[1757427078715,0.60093963,4335.7,4335.0,4.4534]
[1757427078915,0.87793963,4335.6,4335.0,6.3462]
[1757427079218,0.9035,4335.4,4335.0,5.9965]
[1757427079408,0.48596398,4335.3,4335.1,0.8959]
[1757427079616,0.48587966,4335.2,4335.1,0.8959]
[1757427079816,0.277,4335.2,4335.1,0.8959]
[1757427080416,0.9035,4336.3,4335.1,0.8959]
[1757427080714,0.60118454,4336.2,4335.1,0.8959]
[1757427080914,0.60118454,4336.2,4335.0,5.4594]
[1757427080915,0.87818454,4336.1,4335.5,4.4625]
[1757427081111,0.9035,4335.8,4335.5,3.2078]
[1757427081414,0.3417,4335.5,4335.0,1.8928]
[1757427081715,0.87816634,4335.4,4335.0,1.8928]
[1757427081914,0.60116634,4335.3,4335.0,1.8928]
[1757427082113,0.9035,4335.1,4335.0,1.8928]
[1757427082418,4.60117541,4335.1,4333.0,0.3588]
[1757427082622,3.2078,4334.1,4333.3,0.8959]
[1757427082817,0.87817541,4334.0,4333.3,0.8959]
[1757427083016,3.2078,4334.7,4334.0,0.3588]
[1757427083323,0.39236097,4334.6,4334.5,1.2547]
[1757427083621,0.277,4334.6,4334.5,1.2547]
[1757427083917,0.277,4334.6,4334.0,0.3588]
[1757427084118,0.277,4334.6,4334.0,1.2547]
[1757427084322,3.2078,4334.4,4334.1,0.8959]
[1757427084524,3.2078,4334.4,4333.6,0.8959]
[1757427084822,3.2078,4333.8,4333.6,0.8959]
[1757427085121,3.4848,4333.7,4333.6,0.8959]
[1757427085521,3.4848,4333.7,4333.3,3.8735]
[1757427085923,3.4848,4333.7,4333.3,2.9776]
[1757427086118,3.4848,4333.6,4333.4,0.8959]
[1757427087117,3.2078,4333.6,4333.5,1.2547]
[1757427087315,3.4848,4333.6,4333.5,1.2547]
[1757427087615,3.60022457,4333.6,4333.5,0.8959]
[1757427087816,3.60022457,4333.6,4333.5,1.2547]
[1757427088318,0.277,4333.6,4333.5,1.2547]
[1757427088524,0.277,4333.6,4333.0,3.5666]
[1757427088525,0.277,4333.6,4333.0,4.4625]
[1757427089019,3.2078,4333.7,4333.1,0.8959]
[1757427089225,3.2078,4333.7,4333.6,0.8959]
[1757427089423,3.60017039,4333.7,4333.6,0.8959]
[1757427089832,3.59917039,4333.7,4333.6,0.8959]
[1757427090322,1.23465052,4334.5,4333.6,4.8959]
[1757427090519,0.276,4334.4,4333.7,0.8959]
[1757427091623,3.2078,4334.1,4333.7,0.8959]
[1757427091925,0.276,4334.0,4333.5,0.3588]
[1757427092124,0.9035,4334.4,4333.6,0.8959]
[1757427092423,0.39136683,4334.3,4333.6,0.8959]
[1757427092621,0.276,4334.3,4333.6,0.8959]
[1757427093015,3.2078,4334.2,4333.6,0.8959]
[1757427093820,0.276,4334.1,4333.6,0.8959]
[1757427094016,3.2078,4334.7,4333.6,0.8959]
[1757427094017,0.276,4334.0,4333.6,0.8959]
[1757427094324,2.9944,4334.7,4334.0,0.3588]
[1757427094628,3.2078,4335.2,4334.6,0.8959]
[1757427094824,0.3913788,4335.1,4334.6,0.8959]
[1757427095022,0.59923494,4335.0,4334.5,0.3588]
[1757427095225,0.276,4334.9,4334.5,0.3588]
[1757427095425,0.276,4334.9,4334.6,0.8959]
[1757427095619,0.276,4334.9,4334.5,0.3588]
[1757427095929,0.9035,4335.5,4334.5,0.3588]
[1757427095930,0.276,4334.8,4334.5,0.3588]
[1757427096131,0.276,4334.8,4334.6,0.8959]
[1757427096423,0.276,4334.8,4334.5,0.3588]
[1757427096825,0.276,4334.8,4334.6,0.8959]
[1757427097233,0.276,4335.3,4334.7,0.8959]
[1757427097820,0.276,4335.3,4334.8,0.23068]
[1757427098026,0.276,4335.7,4335.1,0.8959]
[1757427098220,3.2078,4336.2,4335.6,0.8959]
[1757427098421,0.75984121,4336.1,4336.0,0.3588]
[1757427098626,0.48384121,4336.1,4336.0,1.2547]
[1757427098922,0.276,4336.1,4336.0,1.2547]
[1757427099728,0.276,4336.2,4336.0,1.2547]
[1757427100034,0.276,4336.2,4336.1,0.8959]
[1757427100730,0.276,4336.2,4335.8,0.8959]
[1757427100928,3.2078,4336.0,4335.8,0.8959]
[1757427101127,3.2078,4336.0,4335.5,0.3588]
[1757427101632,0.9035,4336.1,4335.5,1.2547]
[1757427102736,0.275,4336.0,4335.5,0.3588]
[1757427103329,0.275,4336.0,4335.6,0.8959]
[1757427103528,1.1785,4336.0,4335.5,0.3588]
[1757427103728,0.275,4336.0,4335.6,0.8959]
[1757427103929,0.275,4336.0,4335.5,0.3588]
[1757427104125,0.23064,4335.9,4334.6,3.2078]
[1757427104330,0.23064,4335.9,4333.5,1.2547]
[1757427104331,0.4858,4334.6,4333.5,1.2547]
[1757427104531,3.2078,4334.1,4333.6,0.8959]
[1757427104736,3.2078,4334.1,4333.5,0.3588]
[1757427104737,0.275,4334.0,4333.5,0.3588]
[1757427104929,3.2078,4334.1,4333.5,0.3588]
[1757427105136,0.275,4333.9,4333.6,0.8959]
[1757427105435,3.2078,4334.1,4333.6,0.8959]
[1757427105830,0.275,4335.0,4334.1,0.8959]
[1757427106031,0.48325327,4334.9,4334.1,0.8959]
[1757427106240,0.48325327,4334.8,4334.5,0.3588]
[1757427106425,0.275,4335.0,4334.6,0.9176]
[1757427106738,0.483415,4334.9,4334.5,0.3588]
[1757427107036,0.758415,4334.8,4334.5,0.3588]
[1757427107238,0.275,4334.7,4334.6,0.9176]
[1757427107535,0.275,4334.7,4334.0,0.3588]
[1757427107730,0.48355735,4334.6,4334.0,0.3588]
[1757427107925,0.275,4334.7,4334.0,0.3588]
[1757427107926,0.48355735,4334.5,4334.0,0.3588]
[1757427108233,3.2078,4335.0,4334.1,0.9176]
[1757427108439,0.75865142,4334.9,4334.1,0.9176]
[1757427108637,0.5989699,4334.8,4334.1,0.9176]
[1757427108825,1.23465052,4335.4,4334.1,0.9176]
[1757427108826,3.2078,4334.5,4334.1,0.9176]
[1757427109026,0.48365142,4334.4,4334.1,0.9176]
[1757427109338,0.75865142,4334.3,4334.1,0.9176]
[1757427109539,0.275,4334.3,4334.0,0.3588]
[1757427109734,0.275,4334.3,4334.1,0.9176]
[1757427110231,3.2078,4334.5,4334.0,0.3588]
[1757427110441,0.275,4334.4,4334.0,0.3588]
[1757427110834,0.275,4334.4,4334.1,0.9176]
[1757427112035,0.275,4334.4,4334.0,0.3588]
[1757427112241,0.275,4334.4,4334.1,0.9176]
[1757427112437,0.7947,4334.4,4333.7,3.2078]
[1757427112636,0.4838104,4334.3,4333.7,3.2078]
[1757427112841,0.4838104,4334.2,4333.7,0.9176]
[1757427113135,0.7947,4334.4,4334.0,0.3634]
[1757427113136,0.275,4334.4,4334.0,0.3634]
[1757427113438,0.48382296,4334.3,4333.6,2.1]
[1757427113641,3.2078,4334.0,4333.6,2.1]
[1757427113840,0.48382296,4333.9,4333.6,2.1]
[1757427114135,0.75882296,4333.8,4333.7,0.9176]
[1757427115140,0.75882296,4333.8,4333.0,0.3634]
[1757427115342,3.2078,4333.4,4333.1,0.9176]
[1757427115543,0.274,4333.3,4333.0,0.3634]
[1757427116239,0.274,4333.3,4333.1,0.9176]
[1757427116943,0.274,4333.3,4333.0,0.3634]
[1757427117744,3.2078,4333.4,4333.0,0.3634]
[1757427117941,0.274,4333.3,4333.0,0.3634]
[1757427118333,0.274,4333.3,4333.1,0.9176]
[1757427118848,3.2078,4333.4,4333.1,0.9176]
[1757427119340,0.274,4333.3,4333.1,0.9176]
[1757427119541,0.274,4333.3,4333.0,0.3634]
[1757427119542,3.2078,4333.9,4333.5,0.3634]
[1757427119842,0.274,4333.8,4333.6,0.9176]
[1757427120045,3.2078,4333.9,4333.5,0.3634]
[1757427120046,0.274,4333.7,4333.5,0.3634]
[1757427120236,3.2078,4334.0,4333.6,0.9176]
[1757427120433,3.2078,4334.7,4334.6,0.9176]
[1757427120632,3.96526195,4334.7,4334.6,0.9176]
[1757427120938,3.96526195,4334.7,4334.1,0.9176]
[1757427121138,0.48346195,4334.6,4334.0,0.3634]
[1757427121339,0.48346195,4334.6,4334.1,0.9176]
[1757427121745,0.48346195,4334.6,4334.0,1.281]
[1757427121941,0.71418195,4334.6,4334.0,0.9176]
[1757427122143,3.2078,4334.1,4333.5,1.281]
[1757427122350,0.274,4334.0,4333.5,0.3634]
[1757427122841,3.2078,4334.1,4333.6,0.9176]
[1757427123043,0.274,4334.0,4333.6,0.9176]
[1757427123246,3.2078,4334.7,4333.6,0.9176]
[1757427123451,0.274,4334.3,4334.0,0.3634]
[1757427124245,0.274,4334.3,4334.1,0.9176]
[1757427124440,0.5197,4334.1,4333.1,0.9176]
[1757427124644,0.48345121,4334.0,4333.1,0.9176]
[1757427124852,0.75745121,4333.9,4333.1,0.9176]
[1757427125041,0.48345121,4333.8,4333.1,0.9176]
[1757427125247,3.2078,4333.9,4333.1,0.9176]
[1757427125449,0.274,4333.8,4333.5,0.3634]
[1757427125651,0.274,4333.8,4333.6,0.9176]
[1757427125850,1.00292524,4333.7,4332.9,4.1254]
[1757427126048,0.48322524,4333.6,4332.9,4.1254]
[1757427126246,0.48322524,4333.5,4332.9,4.1254]
[1757427126451,0.274,4333.4,4333.1,0.9176]
[1757427127456,0.274,4333.4,4333.0,0.3634]
[1757427127759,0.274,4333.3,4333.1,0.9176]
[1757427128054,0.273,4333.4,4333.1,0.9176]
[1757427128252,3.2078,4333.9,4333.6,0.9176]
[1757427128848,3.2078,4334.5,4333.6,0.9176]
[1757427129154,0.48315903,4334.4,4333.6,0.9176]
[1757427129353,0.75615903,4334.3,4333.6,0.9176]
[1757427129554,0.48315903,4334.2,4334.0,0.3634]
[1757427129849,0.48315903,4334.2,4334.1,0.9176]
[1757427131147,0.48315903,4334.2,4333.6,0.9176]
[1757427131343,3.2078,4334.0,4333.0,0.3634]
[1757427131548,1.27585903,4333.9,4333.0,1.281]
[1757427131752,0.48315903,4333.8,4333.0,1.281]
[1757427132155,0.48315903,4333.8,4333.0,0.3634]
[1757427132450,3.2078,4333.5,4333.0,0.3634]
[1757427132757,0.75615903,4333.4,4333.1,0.9176]
[1757427132961,0.48315903,4333.3,4332.6,0.9176]
[1757427133252,3.2078,4333.0,4332.6,0.9176]
[1757427133452,0.75615903,4332.9,4332.6,0.9176]
[1757427133751,0.5197,4332.7,4331.5,1.281]
[1757427133951,3.2078,4332.0,4331.6,0.9176]
[1757427134256,0.48315903,4331.9,4331.6,0.9176]
[1757427134556,0.273,4332.1,4332.0,0.3634]
[1757427134753,0.273,4332.1,4332.0,1.281]
[1757427135056,1.23465052,4333.1,4332.1,0.9176]
[1757427135057,0.273,4332.3,4332.1,0.9176]
[1757427135255,0.273,4332.9,4332.5,0.3634]
[1757427135450,0.273,4332.9,4332.6,0.9176]
[1757427135753,0.273,4333.1,4333.0,0.3634]
[1757427135956,0.273,4333.1,4333.0,1.281]
[1757427136354,3.2078,4333.6,4333.0,1.281]
[1757427136655,0.273,4333.5,4333.0,0.3634]
[1757427137656,4.0804,4334.0,4333.0,0.3634]
[1757427137858,0.273,4333.9,4333.1,0.8895]
[1757427139453,0.8487,4333.8,4333.1,0.8895]
[1757427140362,0.8487,4333.3,4332.5,1.2529]
[1757427140560,0.273,4333.2,4332.5,1.2529]
[1757427140965,0.273,4333.2,4332.6,0.8895]
[1757427143652,0.8487,4332.8,4332.1,0.8895]
[1757427143859,0.272,4332.7,4332.1,0.8895]
[1757427145064,0.8487,4332.3,4331.6,0.8895]
[1757427145265,0.272,4332.2,4331.6,0.8895]
[1757427145666,0.8487,4332.1,4331.6,0.8895]
[1757427145960,1.1207,4332.2,4331.6,0.8895]
[1757427146660,0.48191761,4332.1,4331.1,0.8895]
[1757427146859,0.48191761,4332.0,4331.1,0.8895]
[1757427147061,0.48191761,4331.9,4331.1,0.8895]
[1757427147260,0.75391761,4331.8,4331.1,0.8895]
[1757427147467,0.75372677,4331.7,4331.1,0.8895]
[1757427147664,3.2078,4331.2,4331.1,0.8895]
[1757427147863,3.96152677,4331.2,4331.1,3.1527]
[1757427148263,4.81022677,4331.2,4331.1,2.2632]
[1757427148865,8.81022677,4331.2,4331.1,2.2632]
[1757427149865,0.8487,4330.9,4329.6,0.8895]
[1757427150066,3.96152677,4330.8,4329.6,0.8895]
[1757427150268,0.75372677,4330.7,4329.6,0.8895]
[1757427150467,0.48172677,4330.6,4329.6,0.8895]
[1757427150668,0.75372677,4330.5,4329.6,0.8895]
[1757427150867,3.2078,4330.8,4329.7,0.23094]
[1757427151170,0.272,4330.4,4330.1,0.8895]
[1757427151473,0.272,4330.5,4330.1,0.8895]
[1757427151772,3.2078,4331.4,4330.6,0.8895]
[1757427152074,0.75230915,4331.3,4330.6,0.8895]
[1757427152270,0.48030915,4331.2,4330.6,0.8895]
[1757427152465,0.272,4331.3,4330.6,0.8895]
[1757427152966,0.272,4331.3,4331.0,0.3637]
[1757427153171,0.272,4331.2,4331.1,0.8895]
[1757427153470,3.2078,4331.4,4331.2,0.8895]
[1757427153672,3.4798,4331.4,4331.2,0.8895]
[1757427153863,3.4798,4331.4,4331.1,0.8895]
[1757427154768,3.4798,4331.4,4331.0,0.3637]
[1757427155269,3.2078,4331.9,4331.6,0.8895]
[1757427155569,0.8487,4333.2,4332.0,0.3637]
[1757427155760,0.75144244,4333.1,4332.2,0.8895]
[1757427155960,0.48044244,4333.0,4332.2,0.8895]
[1757427156972,0.271,4332.9,4332.2,0.8895]
[1757427157266,0.48044244,4332.8,4332.2,0.8895]
[1757427157461,0.271,4332.9,4332.2,0.8895]
[1757427158771,3.2078,4333.3,4333.1,0.8895]
[1757427158964,0.271,4333.2,4333.1,0.8895]
[1757427159367,0.2416,4333.0,4331.1,3.2078]
[1757427159569,0.8487,4332.4,4331.1,3.2078]
[1757427159866,3.2078,4332.1,4331.2,0.8895]
[1757427160067,0.48048188,4332.0,4331.2,0.8895]
[1757427160267,0.48048188,4331.9,4331.2,0.8895]
[1757427160468,0.271,4331.8,4331.2,0.8895]
[1757427160670,3.2078,4332.6,4331.6,3.2078]
[1757427160873,3.2078,4333.2,4332.3,0.8895]
[1757427161068,3.4788,4333.2,4332.3,0.8895]
[1757427161568,4.3275,4333.2,4332.3,0.8895]
[1757427161760,0.271,4333.2,4332.8,3.2078]
[1757427161965,0.271,4333.1,4332.9,0.8895]
[1757427162766,0.271,4333.1,4332.8,3.2078]
[1757427163170,0.271,4333.1,4332.9,0.8895]
[1757427163365,0.271,4333.1,4332.8,3.2078]
[1757427163366,0.271,4333.4,4333.0,0.3637]
[1757427163562,3.2078,4333.9,4333.1,0.8895]
[1757427163772,0.271,4333.6,4333.5,0.3637]
[1757427163967,0.271,4333.6,4333.5,1.2532]
[1757427164678,0.271,4333.6,4333.5,0.8895]
[1757427167278,0.8519,4334.8,4333.6,0.8712]
[1757427167576,3.4778,4335.0,4334.1,0.8712]
[1757427168177,3.2078,4335.0,4334.1,0.8712]
[1757427168378,3.2078,4335.0,4334.6,0.8712]
[1757427168685,3.2078,4336.0,4334.6,0.8712]
[1757427168880,3.2078,4336.0,4335.1,0.8712]
[1757427169072,0.27,4335.9,4335.5,3.5422]
[1757427169382,0.27,4335.9,4335.5,3.2078]
[1757427169582,0.8519,4335.8,4335.6,0.8712]
[1757427169972,0.8519,4335.8,4335.1,0.8712]
[1757427170374,0.8519,4335.4,4334.5,1.2056]
[1757427170575,0.27,4335.3,4334.9,0.8712]
[1757427170782,0.27,4335.2,4335.0,0.3344]
[1757427171079,0.27,4335.2,4335.1,0.8712]
[1757427171381,3.2078,4335.7,4335.1,0.8712]
[1757427171382,0.8519,4335.6,4335.1,0.8712]
[1757427171582,0.8519,4335.6,4334.8,0.8712]
[1757427171583,0.27,4335.5,4334.8,0.8712]
[1757427172380,0.8519,4335.6,4334.8,4.079]
[1757427172691,3.2078,4335.7,4335.1,0.8712]
[1757427173382,0.27,4335.9,4335.4,0.8712]
[1757427173577,34.1089,4336.3,4335.6,0.8712]
[1757427173793,0.27,4336.4,4335.6,0.8712]
[1757427174785,0.8519,4336.3,4335.6,0.8712]
[1757427176790,0.27,4336.2,4335.9,0.8712]
[1757427176981,0.27,4336.2,4335.8,3.2078]
[1757427177182,0.27,4336.2,4335.9,0.8712]
[1757427177391,3.4778,4336.5,4336.1,0.8712]
[1757427177590,3.4778,4336.5,4336.0,0.3344]
[1757427177885,3.4778,4336.5,4336.1,0.8712]
[1757427178590,0.8519,4336.4,4335.6,0.8712]
[1757427178790,0.8519,4336.4,4335.3,3.2078]
[1757427179086,3.8122,4336.5,4335.3,3.2078]
[1757427179284,1.1209,4336.4,4335.5,0.3344]
[1757427179588,0.269,4336.3,4335.6,0.8712]
[1757427180285,0.8519,4336.4,4335.6,0.8712]
[1757427180483,0.269,4336.3,4336.0,0.3344]
[1757427180690,0.8519,4336.2,4335.5,3.5422]
[1757427180890,0.8519,4336.2,4335.6,0.8712]
[1757427181192,0.269,4336.3,4335.6,0.8712]
[1757427181991,0.269,4336.4,4335.6,0.8712]
[1757427182385,0.8519,4336.3,4335.6,0.8712]
[1757427183392,0.8519,4336.3,4335.1,0.8712]
[1757427183793,0.8519,4335.8,4335.1,0.8712]
[1757427183989,0.269,4335.7,4334.9,3.2078]
[1757427184193,4.0597,4335.4,4334.7,0.8712]
[1757427185087,0.8519,4335.8,4334.7,0.8712]
[1757427185393,0.269,4335.7,4335.1,0.8712]
[1757427185787,1.63910793,4337.6,4335.5,0.3344]
[1757427185788,0.8519,4336.3,4335.5,0.3344]
[1757427185984,0.269,4336.2,4335.6,0.8712]
[1757427186486,3.2078,4336.5,4335.6,0.8712]
[1757427186681,0.269,4336.4,4335.6,0.8712]
[1757427187086,3.2078,4336.5,4336.0,0.3344]
[1757427187294,3.2078,4337.1,4336.2,3.2078]
[1757427187593,3.4768,4337.1,4336.3,0.8712]
[1757427188082,0.8519,4337.0,4336.3,0.8712]
[1757427189291,0.8519,4337.0,4336.8,3.2078]
[1757427189491,0.8519,4337.0,4336.3,4.079]
[1757427189693,0.8519,4336.9,4336.3,3.2078]
[1757427190189,0.8519,4336.7,4335.9,0.8712]
[1757427190392,1.1209,4336.7,4335.9,0.8712]
[1757427190590,1.1209,4336.7,4336.1,0.8712]
[1757427191590,0.8519,4336.6,4335.8,3.2078]
[1757427191790,0.8519,4336.4,4335.6,0.8712]
[1757427191986,0.8519,4336.2,4335.6,0.8712]
[1757427192490,0.8519,4335.9,4335.2,3.2078]
[1757427192692,0.8519,4335.3,4334.8,0.8712]
[1757427192896,0.8519,4335.2,4334.8,0.8712]
[1757427193090,0.268,4335.3,4334.7,3.2078]
[1757427193286,0.47874111,4335.2,4334.7,3.2078]
[1757427193498,0.3344,4335.0,4334.7,3.2078]
[1757427193704,0.8519,4334.8,4334.7,3.2078]
[1757427193902,1.33064111,4334.8,4334.7,3.2078]
[1757427194492,0.47874111,4334.8,4334.7,4.079]
[1757427194897,0.47874111,4334.9,4334.7,4.079]
[1757427195093,0.47874111,4334.8,4334.7,4.079]
[1757427195289,0.47874111,4334.8,4334.7,0.8712]
[1757427195495,1.33064111,4334.9,4334.7,0.8712]
[1757427195702,0.47874111,4334.8,4334.7,0.8712]
[1757427196094,1.33064111,4334.8,4334.7,0.8712]
[1757427196299,1.33064111,4334.8,4334.3,0.8712]
[1757427196500,0.47874111,4334.7,4334.1,4.1019]